fUSD/lending_fUSD_20240814
["ID","MTS","AMOUNT","RATE_DAILY","PERIOD"]
[334824600,1723605046071,-1899.15,0.00013698,2]
[334824601,1723605046080,-591.0,0.00013698,2]
[334824602,1723605046089,-500.0,0.00013698,2]
[334824603,1723605046098,-2902.42,0.00013698,2]
[334824604,1723605046107,-681.58,0.00013698,2]
[334824605,1723605046116,-979.62,0.00013698,2]
[334824606,1723605046125,-756.88,0.00013698,2]
[334824607,1723605046134,-500.0,0.00013698,2]
[334824608,1723605046143,-522.04,0.00013698,2]
[334824609,1723605046152,-1101.29,0.00013698,2]
[334824610,1723605046161,-500.0,0.00013698,2]
[334824611,1723605046170,-420.44812561,0.00013698,2]
[334824613,1723605046179,-1108.67,0.00013698,2]
[334824615,1723605046188,-500.0,0.00013698,2]
[334824617,1723605046196,-500.0,0.00013698,2]
[334824618,1723605046205,-1192.85,0.00013698,2]
[334824619,1723605046214,-500.0,0.00013698,2]
[334824620,1723605046223,-1671.63,0.00013698,2]
[334824621,1723605046232,-738.15,0.00013698,2]
[334824622,1723605046241,-500.0,0.00013698,2]
[334824623,1723605046250,-4757.69,0.00013698,2]
[334824624,1723605046259,-817.28,0.00013698,2]
[334824625,1723605046268,-500.0,0.00013698,2]
[334824626,1723605046278,-500.0,0.00013698,2]
[334824627,1723605046287,-1634.26,0.00013698,2]
[334824628,1723605046296,-549.7765278,0.00013698,2]
[334824629,1723605046305,-1376.93,0.00013698,2]
[334824630,1723605046316,-500.0,0.00013698,2]
[334824631,1723605046331,-500.0,0.00013698,2]
[334824632,1723605046340,-500.0,0.00013698,2]
[334824633,1723605046350,-1110.82,0.00013698,2]
[334824634,1723605046359,-18059.26,0.00013698,2]
[334824635,1723605046369,-500.0,0.00013698,2]
[334824636,1723605046378,-2339.81,0.00013698,2]
[334824637,1723605046388,-815.45,0.00013698,2]
[334824638,1723605046397,-1022.58,0.00013698,2]
[334824639,1723605046406,-779.0,0.00013698,2]
[334824640,1723605046415,-1739.76,0.00013698,2]
[334824641,1723605046424,-500.0,0.00013698,2]
[334824642,1723605046433,-500.0,0.00013698,2]
[334824643,1723605046442,-500.0,0.00013698,2]
[334824644,1723605046452,-716.15,0.00013698,2]
[334824645,1723605046461,-500.0,0.00013698,2]
[334824646,1723605046470,-824.5,0.00013698,2]
[334824647,1723605046479,-611.72,0.00013698,2]
[334824648,1723605046488,-500.0,0.00013698,2]
[334824649,1723605046498,-573.09,0.00013698,2]
[334824650,1723605046507,-500.0,0.00013698,2]
[334824651,1723605046516,-564.02,0.00013698,2]
[334824652,1723605046525,-500.0,0.00013698,2]
[334824653,1723605046534,-1688.94,0.00013698,2]
[334824654,1723605046543,-500.0,0.00013698,2]
[334824655,1723605046553,-754.52,0.00013698,2]
[334824656,1723605046562,-500.0,0.00013698,2]
[334824657,1723605046575,-500.0,0.00013698,2]
[334824658,1723605046584,-2125.28,0.00013698,2]
[334824659,1723605046593,-862.91,0.00013698,2]
[334824660,1723605046602,-500.0,0.00013698,2]
[334824661,1723605046611,-1627.71,0.00013698,2]
[334824662,1723605046620,-726.59,0.00013698,2]
[334824663,1723605046630,-500.0,0.00013698,2]
[334824664,1723605046639,-5975.91,0.00013698,2]
[334824665,1723605046648,-500.0,0.00013698,2]
[334824666,1723605046658,-1414.92,0.00013698,2]
[334824667,1723605046667,-592.73,0.00013698,2]
[334824668,1723605046676,-902.13,0.00013698,2]
[334824669,1723605046685,-2088.05,0.00013698,2]
[334824670,1723605046694,-5374.81,0.00013698,2]
[334824671,1723605046704,-1387.45,0.00013698,2]
[334824672,1723605046713,-768.36,0.00013698,2]
[334824673,1723605046723,-1156.61,0.00013698,2]
[334824674,1723605046732,-1156.61,0.00013698,2]
[334824675,1723605046742,-1156.61,0.00013698,2]
[334824676,1723605046751,-493.37966105,0.00013698,2]
[334824677,1723605046761,-1156.61,0.00013698,2]
[334824678,1723605046770,-1156.61,0.00013698,2]
[334824679,1723605046779,-1156.61,0.00013698,2]
[334824680,1723605046789,-3876.74,0.00013698,2]
[334824681,1723605046799,-500.0,0.00013698,2]
[334824682,1723605046808,-500.0,0.00013698,2]
[334824683,1723605046819,-500.0,0.00013698,2]
[334824684,1723605046942,-1245.3,0.00013698,2]
[334824685,1723605046961,-500.0,0.00013698,2]
[334824686,1723605046970,-500.0,0.00013698,2]
[334824687,1723605046979,-618.4,0.00013698,2]
[334824688,1723605046988,-500.0,0.00013698,2]
[334824689,1723605046997,-2815.43,0.00013698,2]
[334824690,1723605047006,-3826.76,0.00013698,2]
[334824691,1723605047015,-500.0,0.00013698,2]
[334824692,1723605047025,-807.19,0.00013698,2]
[334824693,1723605047034,-2271.26,0.00013698,2]
[334824694,1723605047044,-855.92,0.00013698,2]
[334824695,1723605047053,-7857.05,0.00013698,2]
[334824696,1723605047063,-1088.18,0.00013698,2]
[334824697,1723605047073,-500.0,0.00013698,2]
[334824698,1723605047082,-752.58,0.00013698,2]
[334824699,1723605047092,-500.0,0.00013698,2]
[334824700,1723605047102,-500.0,0.00013698,2]
[334824701,1723605047111,-3025.79,0.00013698,2]
[334824702,1723605047120,-2164.19,0.00013698,2]
[334824703,1723605047129,-3869.55,0.00013698,2]
[334824704,1723605047139,-500.0,0.00013698,2]
[334824705,1723605047148,-892.24,0.00013698,2]
[334824706,1723605047157,-500.0,0.00013698,2]
[334824707,1723605047167,-500.0,0.00013698,2]
[334824708,1723605047177,-662.61,0.00013698,2]
[334824709,1723605047186,-916.14,0.00013698,2]
[334824710,1723605047196,-795.16,0.00013698,2]
[334824711,1723605047206,-26609.07,0.00013698,2]
[334824712,1723605047215,-500.0,0.00013698,2]
[334824713,1723605047224,-500.0,0.00013698,2]
[334824714,1723605047234,-3398.55,0.00013698,2]
[334824715,1723605047243,-22218.98,0.00013698,2]
[334824716,1723605047252,-500.0,0.00013698,2]
[334824717,1723605047261,-2542.25,0.00013698,2]
[334824718,1723605047271,-1245.59,0.00013698,2]
[334824719,1723605047280,-500.0,0.00013698,2]
[334824720,1723605047289,-469.15173532,0.00013698,2]
[334824721,1723605047298,-500.0,0.00013698,2]
[334824722,1723605047307,-1016.07,0.00013698,2]
[334824723,1723605047319,-2255.75,0.00013698,2]
[334824724,1723605047330,-500.0,0.00013698,2]
[334824725,1723605047339,-500.0,0.00013698,2]
[334824726,1723605047349,-1410.58,0.00013698,2]
[334824727,1723605047358,-500.0,0.00013698,2]
[334824728,1723605047368,-941.19,0.00013698,2]
[334824729,1723605047377,-500.0,0.00013698,2]
[334824730,1723605047387,-8200.38,0.00013698,2]
[334824731,1723605047397,-500.0,0.00013698,2]
[334824732,1723605047406,-500.0,0.00013698,2]
[334824733,1723605047415,-5134.83,0.00013698,2]
[334824734,1723605047425,-500.0,0.00013698,2]
[334824735,1723605047434,-500.0,0.00013698,2]
[334824736,1723605047444,-1475.56,0.00013698,2]
[334824737,1723605047454,-1590.03,0.00013698,2]
[334824738,1723605047463,-500.0,0.00013698,2]
[334824739,1723605047472,-500.0,0.00013698,2]
[334824740,1723605047482,-500.0,0.00013698,2]
[334824741,1723605047492,-2005.17,0.00013698,2]
[334824742,1723605047501,-500.0,0.00013698,2]
[334824743,1723605047511,-500.0,0.00013698,2]
[334824744,1723605047520,-598.02,0.00013698,2]
[334824745,1723605047529,-500.0,0.00013698,2]
[334824746,1723605047538,-12984.39,0.00013698,2]
[334824747,1723605047548,-7951.86,0.00013698,2]
[334824748,1723605047557,-1032.44,0.00013698,2]
[334824749,1723605047567,-739.61,0.00013698,2]
[334824750,1723605047576,-500.0,0.00013698,2]
[334824751,1723605047586,-500.0,0.00013698,2]
[334824752,1723605047595,-2078.47,0.00013698,2]
[334824753,1723605047605,-500.0,0.00013698,2]
[334824754,1723605047615,-3476.41,0.00013698,2]
[334824755,1723605047625,-39703.17,0.00013698,2]
[334824756,1723605047635,-18895.17,0.00013698,2]
[334824757,1723605047645,-2008.56,0.00013698,2]
[334824758,1723605047654,-500.0,0.00013698,2]
[334824759,1723605047664,-500.0,0.00013698,2]
[334824760,1723605047673,-500.0,0.00013698,2]
[334824761,1723605047683,-16246.9,0.00013698,2]
[334824762,1723605047692,-960.08,0.00013698,2]
[334824763,1723605047701,-500.0,0.00013698,2]
[334824764,1723605047711,-23755.04,0.00013698,2]
[334824765,1723605047720,-500.0,0.00013698,2]
[334824766,1723605047730,-1931.43,0.00013698,2]
[334824767,1723605047739,-1617.8,0.00013698,2]
[334824768,1723605047749,-596.55,0.00013698,2]
[334824769,1723605047758,-1313.03,0.00013698,2]
[334824770,1723605047767,-500.0,0.00013698,2]
[334824771,1723605047777,-7013.22,0.00013698,2]
[334824772,1723605047786,-5544.75,0.00013698,2]
[334824773,1723605047796,-500.0,0.00013698,2]
[334824774,1723605047805,-502.28,0.00013698,2]
[334824775,1723605047816,-500.0,0.00013698,2]
[334824776,1723605047826,-500.0,0.00013698,2]
[334824777,1723605047835,-13355.74,0.00013698,2]
[334824778,1723605047845,-560.1,0.00013698,2]
[334824779,1723605047855,-500.0,0.00013698,2]
[334824780,1723605047864,-500.0,0.00013698,2]
[334824781,1723605047873,-500.0,0.00013698,2]
[334824782,1723605047882,-2441.9,0.00013698,2]
[334824783,1723605047891,-1240.21,0.00013698,2]
[334824784,1723605047901,-2489.4,0.00013698,2]
[334824785,1723605047910,-4897.3,0.00013698,2]
[334824786,1723605047919,-1135.86,0.00013698,2]
[334824787,1723605047929,-4897.3,0.00013698,2]
[334824788,1723605047939,-4897.3,0.00013698,2]
[334824789,1723605047948,-4897.3,0.00013698,2]
[334824790,1723605047958,-500.0,0.00013698,2]
[334824791,1723605047967,-4897.3,0.00013698,2]
[334824792,1723605047976,-4897.3,0.00013698,2]
[334824793,1723605047986,-500.0,0.00013698,2]
[334824794,1723605047995,-4897.3,0.00013698,2]
[334824795,1723605048005,-500.0,0.00013698,2]
[334824796,1723605048014,-4897.3,0.00013698,2]
[334824797,1723605048024,-500.0,0.00013698,2]
[334824798,1723605048033,-500.0,0.00013698,2]
[334824799,1723605048042,-4723.94,0.00013698,2]
[334824800,1723605048051,-500.0,0.00013698,2]
[334824801,1723605048061,-824.22,0.00013698,2]
[334824802,1723605048072,-4121.71,0.00013698,2]
[334824803,1723605048085,-500.0,0.00013698,2]
[334824804,1723605048095,-500.0,0.00013698,2]
[334824805,1723605048104,-500.0,0.00013698,2]
[334824806,1723605048114,-500.0,0.00013698,2]
[334824807,1723605048123,-541.83154029,0.00013698,2]
[334824808,1723605048132,-1725.18,0.00013698,2]
[334824809,1723605048142,-500.0,0.00013698,2]
[334824810,1723605048151,-500.0,0.00013698,2]
[334824811,1723605048161,-500.0,0.00013698,2]
[334824812,1723605048171,-500.0,0.00013698,2]
[334824813,1723605048180,-500.0,0.00013698,2]
[334824814,1723605048190,-500.0,0.00013698,2]
[334824815,1723605048202,-500.0,0.00013698,2]
[334824816,1723605048212,-678.73,0.00013698,2]
[334824817,1723605048221,-303.68575919,0.00013698,2]
[334824818,1723605048230,-500.0,0.00013698,2]
[334824819,1723605048240,-1375.35,0.00013698,2]
[334824820,1723605048249,-500.0,0.00013698,2]
[334824821,1723605048259,-7442.74,0.00013698,2]
[334824822,1723605048268,-990.54,0.00013698,2]
[334824823,1723605048277,-1416.37,0.00013698,2]
[334824824,1723605048287,-500.0,0.00013698,2]
[334824825,1723605048296,-895.16,0.00013698,2]
[334824826,1723605048306,-3072.29,0.00013698,2]
[334824827,1723605048316,-1429.94,0.00013698,2]
[334824828,1723605048328,-14963.69,0.00013698,2]
[334824829,1723605048338,-500.0,0.00013698,2]
[334824830,1723605048347,-500.0,0.00013698,2]
[334824831,1723605048357,-962.78,0.00013698,2]
[334824832,1723605048366,-500.0,0.00013698,2]
[334824833,1723605048376,-5404.54,0.00013698,2]
[334824834,1723605048385,-500.0,0.00013698,2]
[334824835,1723605048395,-500.0,0.00013698,2]
[334824836,1723605048406,-500.0,0.00013698,2]
[334824837,1723605048416,-500.0,0.00013698,2]
[334824838,1723605048425,-500.0,0.00013698,2]
[334824839,1723605048435,-996.29,0.00013698,2]
[334824840,1723605048445,-4853.34,0.00013698,2]
[334824841,1723605048455,-2553.52,0.00013698,2]
[334824842,1723605048464,-862.29,0.00013698,2]
[334824843,1723605048474,-1865.83,0.00013698,2]
[334824844,1723605048483,-708.61,0.00013698,2]
[334824845,1723605048492,-500.0,0.00013698,2]
[334824846,1723605048502,-1066.91,0.00013698,2]
[334824847,1723605048511,-500.0,0.00013698,2]
[334824848,1723605048520,-500.0,0.00013698,2]
[334824849,1723605048530,-10401.13,0.00013698,2]
[334824850,1723605048540,-2646.9,0.00013698,2]
[334824851,1723605048550,-500.0,0.00013698,2]
[334824852,1723605048560,-500.0,0.00013698,2]
[334824853,1723605048569,-500.0,0.00013698,2]
[334824854,1723605048579,-500.0,0.00013698,2]
[334824855,1723605048588,-500.0,0.00013698,2]
[334824856,1723605048598,-500.0,0.00013698,2]
[334824857,1723605048607,-8054.04,0.00013698,2]
[334824858,1723605048616,-500.0,0.00013698,2]
[334824859,1723605048626,-1513.43,0.00013698,2]
[334824860,1723605048635,-3569.57,0.00013698,2]
[334824861,1723605048645,-4502.45,0.00013698,2]
[334824862,1723605048655,-500.0,0.00013698,2]
[334824863,1723605048664,-1672.01,0.00013698,2]
[334824864,1723605048674,-1382.21,0.00013698,2]
[334824865,1723605048683,-500.0,0.00013698,2]
[334824866,1723605048693,-500.0,0.00013698,2]
[334824867,1723605048703,-500.0,0.00013698,2]
[334824868,1723605048712,-30978.45,0.00013698,2]
[334824869,1723605048722,-808.08,0.00013698,2]
[334824870,1723605048731,-1117.17,0.00013698,2]
[334824871,1723605048741,-500.0,0.00013698,2]
[334824872,1723605048751,-2412.04,0.00013698,2]
[334824873,1723605048760,-1667.3,0.00013698,2]
[334824874,1723605048770,-500.0,0.00013698,2]
[334824875,1723605048779,-9957.53,0.00013698,2]
[334824876,1723605048789,-522.68304058,0.00013698,2]
[334824877,1723605048798,-541.43,0.00013698,2]
[334824878,1723605048808,-500.0,0.00013698,2]
[334824879,1723605048818,-1421.86,0.00013698,2]
[334824880,1723605048828,-3315.49,0.00013698,2]
[334824881,1723605048838,-1350.79,0.00013698,2]
[334824882,1723605048847,-500.0,0.00013698,2]
[334824883,1723605048856,-500.0,0.00013698,2]
[334824884,1723605048866,-5365.68,0.00013698,2]
[334824885,1723605048876,-500.0,0.00013698,2]
[334824886,1723605048885,-1559.83,0.00013698,2]
[334824887,1723605048894,-500.0,0.00013698,2]
[334824888,1723605048904,-5871.12,0.00013698,2]
[334824889,1723605048913,-500.0,0.00013698,2]
[334824890,1723605048922,-1637.79,0.00013698,2]
[334824891,1723605048932,-500.0,0.00013698,2]
[334824892,1723605048941,-1965.79,0.00013698,2]
[334824893,1723605048951,-500.0,0.00013698,2]
[334824894,1723605048960,-1378.04,0.00013698,2]
[334824895,1723605048969,-500.0,0.00013698,2]
[334824896,1723605048978,-1616.8,0.00013698,2]
[334824897,1723605048987,-3530.55,0.00013698,2]
[334824898,1723605048997,-1964.9,0.00013698,2]
[334824899,1723605049006,-500.0,0.00013698,2]
[334824900,1723605049016,-500.0,0.00013698,2]
[334824901,1723605049025,-500.0,0.00013698,2]
[334824902,1723605049035,-523.48,0.00013698,2]
[334824903,1723605049044,-980.96,0.00013698,2]
[334824904,1723605049053,-995.8,0.00013698,2]
[334824905,1723605049382,-1058.49,0.00013698,2]
[334824906,1723605049392,-500.0,0.00013698,2]
[334824907,1723605049403,-500.0,0.00013698,2]
[334824908,1723605049413,-500.0,0.00013698,2]
[334824909,1723605049423,-1158.06,0.00013698,2]
[334824910,1723605049433,-1771.71,0.00013698,2]
[334824911,1723605049442,-2095.59,0.00013698,2]
[334824912,1723605049452,-500.0,0.00013698,2]
[334824913,1723605049462,-500.0,0.00013698,2]
[334824914,1723605049473,-500.0,0.00013698,2]
[334824915,1723605049482,-500.0,0.00013698,2]
[334824916,1723605049492,-5450.64,0.00013698,2]
[334824917,1723605049505,-1436.17,0.00013698,2]
[334824918,1723605049515,-2445.12,0.00013698,2]
[334824919,1723605049524,-500.0,0.00013698,2]
[334824920,1723605049535,-500.0,0.00013698,2]
[334824921,1723605049544,-4063.03,0.00013698,2]
[334824922,1723605049555,-802.79,0.00013698,2]
[334824923,1723605049564,-500.0,0.00013698,2]
[334824924,1723605049575,-500.0,0.00013698,2]
[334824925,1723605049585,-500.0,0.00013698,2]
[334824926,1723605049594,-500.0,0.00013698,2]
[334824927,1723605049604,-500.0,0.00013698,2]
[334824928,1723605049614,-500.0,0.00013698,2]
[334824929,1723605049624,-500.0,0.00013698,2]
[334824930,1723605049634,-821.33,0.00013698,2]
[334824931,1723605049644,-500.0,0.00013698,2]
[334824932,1723605049653,-1957.25,0.00013698,2]
[334824933,1723605049663,-7067.94,0.00013698,2]
[334824934,1723605049673,-500.0,0.00013698,2]
[334824935,1723605049682,-2774.43,0.00013698,2]
[334824936,1723605049692,-500.0,0.00013698,2]
[334824937,1723605049702,-500.0,0.00013698,2]
[334824938,1723605049711,-3061.51,0.00013698,2]
[334824939,1723605049721,-500.0,0.00013698,2]
[334824940,1723605049731,-1772.9,0.00013698,2]
[334824941,1723605049742,-2215.88,0.00013698,2]
[334824942,1723605049752,-500.0,0.00013698,2]
[334824943,1723605049761,-500.0,0.00013698,2]
[334824944,1723605049771,-4957.02,0.00013698,2]
[334824945,1723605049780,-500.0,0.00013698,2]
[334824946,1723605049790,-2209.2,0.00013698,2]
[334824947,1723605049800,-500.0,0.00013698,2]
[334824948,1723605049810,-500.0,0.00013698,2]
[334824949,1723605049820,-500.0,0.00013698,2]
[334824950,1723605049830,-500.0,0.00013698,2]
[334824951,1723605049840,-500.0,0.00013698,2]
[334824952,1723605049850,-500.0,0.00013698,2]
[334824953,1723605049860,-1481.57,0.00013698,2]
[334824954,1723605049869,-3686.74,0.00013698,2]
[334824955,1723605049879,-500.0,0.00013698,2]
[334824956,1723605049889,-500.0,0.00013698,2]
[334824957,1723605049898,-500.0,0.00013698,2]
[334824958,1723605049908,-500.0,0.00013698,2]
[334824959,1723605049918,-623.04,0.00013698,2]
[334824960,1723605049927,-6552.26,0.00013698,2]
[334824961,1723605049937,-623.04,0.00013698,2]
[334824962,1723605049947,-623.04,0.00013698,2]
[334824963,1723605049956,-623.04,0.00013698,2]
[334824964,1723605049966,-500.0,0.00013698,2]
[334824965,1723605049975,-10224.05,0.00013698,2]
[334824966,1723605049985,-500.0,0.00013698,2]
[334824967,1723605049996,-500.0,0.00013698,2]
[334824968,1723605050006,-500.0,0.00013698,2]
[334824969,1723605050015,-500.0,0.00013698,2]
[334824970,1723605050025,-5926.55,0.00013698,2]
[334824971,1723605050035,-2121.42,0.00013698,2]
[334824972,1723605050046,-1373.93,0.00013698,2]
[334824973,1723605050056,-500.0,0.00013698,2]
[334824974,1723605050066,-607.8,0.00013698,2]
[334824975,1723605050076,-1097.71,0.00013698,2]
[334824976,1723605050086,-3557.64,0.00013698,2]
[334824977,1723605050095,-2009.46,0.00013698,2]
[334824978,1723605050105,-500.0,0.00013698,2]
[334824979,1723605050114,-613.33,0.00013698,2]
[334824980,1723605050124,-500.0,0.00013698,2]
[334824981,1723605050133,-3282.55,0.00013698,2]
[334824982,1723605050142,-2903.06,0.00013698,2]
[334824983,1723605050152,-2177.71,0.00013698,2]
[334824984,1723605050162,-500.0,0.00013698,2]
[334824985,1723605050171,-477.85560062,0.00013698,2]
[334824986,1723605050181,-982.92,0.00013698,2]
[334824987,1723605050190,-500.0,0.00013698,2]
[334824988,1723605050200,-500.0,0.00013698,2]
[334824989,1723605050210,-19581.8,0.00013698,2]
[334824990,1723605050220,-901.82,0.00013698,2]
[334824991,1723605050229,-500.0,0.00013698,2]
[334824992,1723605050240,-500.0,0.00013698,2]
[334824993,1723605050250,-500.0,0.00013698,2]
[334824994,1723605050259,-500.0,0.00013698,2]
[334824995,1723605050269,-500.0,0.00013698,2]
[334824996,1723605050281,-645.39,0.00013698,2]
[334824997,1723605050291,-503.71,0.00013698,2]
[334824998,1723605050301,-500.0,0.00013698,2]
[334824999,1723605050313,-506.56556264,0.00013698,2]
[334825000,1723605050326,-1937.79,0.00013698,2]
[334825001,1723605050335,-559.53,0.00013698,2]
[334825002,1723605050347,-14794.65,0.00013698,2]
[334825003,1723605050358,-500.0,0.00013698,2]
[334825004,1723605050369,-505.44,0.00013698,2]
[334825005,1723605050381,-500.0,0.00013698,2]
[334825006,1723605050390,-6442.8,0.00013698,2]
[334825007,1723605050403,-500.0,0.00013698,2]
[334825008,1723605050412,-500.0,0.00013698,2]
[334825009,1723605050421,-646.11,0.00013698,2]
[334825010,1723605050431,-4533.79,0.00013698,2]
[334825011,1723605050440,-500.0,0.00013698,2]
[334825012,1723605050449,-1262.87,0.00013698,2]
[334825013,1723605050458,-500.0,0.00013698,2]
[334825014,1723605050467,-921.69,0.00013698,2]
[334825015,1723605050476,-500.0,0.00013698,2]
[334825016,1723605050485,-500.0,0.00013698,2]
[334825017,1723605050495,-500.0,0.00013698,2]
[334825018,1723605050504,-500.0,0.00013698,2]
[334825019,1723605050514,-3002.74,0.00013698,2]
[334825020,1723605050523,-3535.51,0.00013698,2]
[334825021,1723605050533,-7782.05,0.00013698,2]
[334825022,1723605050542,-500.0,0.00013698,2]
[334825023,1723605050552,-500.0,0.00013698,2]
[334825024,1723605050561,-500.0,0.00013698,2]
[334825025,1723605050572,-617.55,0.00013698,2]
[334825026,1723605050581,-1681.03,0.00013698,2]
[334825027,1723605050590,-5884.62,0.00013698,2]
[334825028,1723605050600,-500.0,0.00013698,2]
[334825029,1723605050610,-1212.09,0.00013698,2]
[334825030,1723605050619,-1178.67,0.00013698,2]
[334825031,1723605050628,-500.0,0.00013698,2]
[334825032,1723605050638,-2997.53,0.00013698,2]
[334825033,1723605050647,-500.0,0.00013698,2]
[334825034,1723605050657,-1667.2,0.00013698,2]
[334825035,1723605050666,-13353.51,0.00013698,2]
[334825036,1723605050675,-5572.93,0.00013698,2]
[334825037,1723605050684,-416.7575063,0.00013698,2]
[334825038,1723605050694,-500.0,0.00013698,2]
[334825039,1723605050704,-505.77800078,0.00013698,2]
[334825040,1723605050714,-3987.19,0.00013698,2]
[334825041,1723605050723,-500.0,0.00013698,2]
[334825042,1723605050734,-6308.52,0.00013698,2]
[334825043,1723605050744,-500.0,0.00013698,2]
[334825044,1723605050753,-3939.64,0.00013698,2]
[334825045,1723605050763,-19005.59,0.00013698,2]
[334825046,1723605050772,-500.0,0.00013698,2]
[334825047,1723605050782,-500.0,0.00013698,2]
[334825048,1723605050790,-500.0,0.00013698,2]
[334825049,1723605050800,-500.0,0.00013698,2]
[334825050,1723605050809,-1888.59,0.00013698,2]
[334825051,1723605050820,-500.0,0.00013698,2]
[334825052,1723605050829,-500.0,0.00013698,2]
[334825053,1723605050839,-500.0,0.00013698,2]
[334825054,1723605050848,-4079.03,0.00013698,2]
[334825055,1723605050857,-2797.42,0.00013698,2]
[334825056,1723605050867,-500.0,0.00013698,2]
[334825057,1723605050876,-644.38,0.00013698,2]
[334825058,1723605050885,-500.0,0.00013698,2]
[334825059,1723605050895,-999.48,0.00013698,2]
[334825060,1723605050904,-500.0,0.00013698,2]
[334825061,1723605050913,-4551.83,0.00013698,2]
[334825062,1723605050922,-500.0,0.00013698,2]
[334825063,1723605050932,-1084.39,0.00013698,2]
[334825064,1723605050942,-1701.31,0.00013698,2]
[334825065,1723605050952,-500.0,0.00013698,2]
[334825066,1723605050961,-7815.54,0.00013698,2]
[334825067,1723605050970,-500.0,0.00013698,2]
[334825068,1723605050979,-500.0,0.00013698,2]
[334825069,1723605050992,-7759.78,0.00013698,2]
[334825070,1723605051002,-1415.9,0.00013698,2]
[334825071,1723605051011,-500.0,0.00013698,2]
[334825072,1723605051021,-500.0,0.00013698,2]
[334825073,1723605051030,-6685.67,0.00013698,2]
[334825074,1723605051040,-500.0,0.00013698,2]
[334825075,1723605051049,-4953.62,0.00013698,2]
[334825076,1723605051058,-729.12,0.00013698,2]
[334825077,1723605051068,-1938.51,0.00013698,2]
[334825078,1723605051077,-1637.32,0.00013698,2]
[334825079,1723605051087,-500.0,0.00013698,2]
[334825080,1723605051096,-1229.49,0.00013698,2]
[334825081,1723605051106,-500.0,0.00013698,2]
[334825082,1723605051115,-500.0,0.00013698,2]
[334825083,1723605051124,-5524.35,0.00013698,2]
[334825084,1723605051134,-500.0,0.00013698,2]
[334825085,1723605051143,-746.42,0.00013698,2]
[334825086,1723605051152,-500.0,0.00013698,2]
[334825087,1723605051162,-1084.25,0.00013698,2]
[334825088,1723605051171,-1241.19,0.00013698,2]
[334825089,1723605051180,-23349.91,0.00013698,2]
[334825090,1723605051190,-4711.28,0.00013698,2]
[334825091,1723605051199,-959.78,0.00013698,2]
[334825092,1723605051209,-1166.89,0.00013698,2]
[334825093,1723605051218,-500.0,0.00013698,2]
[334825094,1723605051227,-500.0,0.00013698,2]
[334825095,1723605051236,-516.52458053,0.00013698,2]
[334825096,1723605051246,-920.13,0.00013698,2]
[334825097,1723605051255,-500.0,0.00013698,2]
[334825098,1723605051264,-4212.25,0.00013698,2]
[334825099,1723605051274,-1991.21,0.00013698,2]
[334825100,1723605051284,-500.0,0.00013698,2]
[334825101,1723605051293,-566.69,0.00013698,2]
[334825102,1723605051302,-500.0,0.00013698,2]